fUSD/lending_fUSD_20250911
["ID","MTS","AMOUNT","RATE_DAILY","PERIOD"]
[384811917,1757568645888,-404.85772348,0.0003097,7]
[384811919,1757568645897,-402.70490091,0.0003097,7]
[384811921,1757568645906,-403.50349253,0.0003097,7]
[384811923,1757568645915,-400.0,0.0003097,7]
[384811925,1757568645924,-405.52378816,0.0003097,7]
[384811927,1757568645934,-400.0,0.0003097,7]
[384811929,1757568645943,-400.0,0.0003097,7]
[384811931,1757568645952,-1510.15,0.0003097,7]
[384811933,1757568645961,-403.91451764,0.0003097,7]
[384811935,1757568645970,-400.0,0.0003097,7]
[384811937,1757568645979,-566.72,0.0003097,7]
[384811939,1757568645989,-400.0,0.0003097,7]
[384811941,1757568645999,-432.63,0.0003097,7]
[384811943,1757568646008,-400.0,0.0003097,7]
[384811945,1757568646018,-152.333633,0.0003097,7]
[384811947,1757568646027,-151.0,0.0003097,7]
[384811949,1757568646037,-422.72,0.0003097,7]
[384811952,1757568646046,-400.0,0.0003097,7]
[384811954,1757568646055,-153.58101,0.0003097,7]
[384811956,1757568646065,-153.052142,0.0003097,7]
[384811958,1757568646074,-400.0,0.0003097,7]
[384811960,1757568646084,-151.0,0.0003097,7]
[384811962,1757568646093,-154.91021,0.0003097,7]
[384811964,1757568646104,-1734.43,0.0003097,7]
[384811966,1757568646113,-400.0,0.0003097,7]
[384811968,1757568646122,-283.496237,0.0003097,7]
[384811970,1757568646132,-838.66,0.0003097,7]
[384811972,1757568646141,-400.0,0.0003097,7]
[384811974,1757568646150,-401.86436994,0.0003097,7]
[384811976,1757568646159,-400.0,0.0003097,7]
[384811978,1757568646169,-151.0,0.0003097,7]
[384811980,1757568646178,-400.0,0.0003097,7]
[384811982,1757568646187,-400.0,0.0003097,7]
[384811984,1757568646197,-959.82,0.0003097,7]
[384811986,1757568646206,-400.0,0.0003097,7]
[384811988,1757568646215,-151.0,0.0003097,7]
[384811990,1757568646225,-400.0,0.0003097,7]
[384811992,1757568646234,-363.2737406,0.0003097,7]
[384811994,1757568646243,-660.55,0.0003097,7]
[384811996,1757568646252,-1164.88,0.0003097,7]
[384811998,1757568646261,-400.0,0.0003097,7]
[384812000,1757568646271,-400.0,0.0003097,7]
[384812002,1757568646280,-780.51,0.0003097,7]
[384812004,1757568646289,-400.0,0.0003097,7]
[384812006,1757568646299,-400.0,0.0003097,7]
[384812007,1757568646308,-402.86819403,0.0003097,7]
[384812008,1757568646317,-402.36525032,0.0003097,7]
[384812009,1757568646326,-533.99,0.0003097,7]
[384812010,1757568646335,-400.0,0.0003097,7]
[384812011,1757568646344,-1197.28,0.0003097,7]
[384812012,1757568646353,-400.0,0.0003097,7]
[384812013,1757568646362,-151.0,0.0003097,7]
[384812014,1757568646372,-157.29091,0.0003097,7]
[384812016,1757568646381,-400.0,0.0003097,7]
[384812017,1757568646390,-777.78,0.0003097,7]
[384812019,1757568646400,-405.10022194,0.0003097,7]
[384812021,1757568646409,-400.0,0.0003097,7]
[384812023,1757568646418,-400.0,0.0003097,7]
[384812025,1757568646428,-151.0,0.0003097,7]
[384812027,1757568646438,-151.0,0.0003097,7]
[384812029,1757568646447,-212.916255,0.0003097,7]
[384812031,1757568646456,-434.15,0.0003097,7]
[384812033,1757568646466,-163.870379,0.0003097,7]
[384812035,1757568646475,-451.69308521,0.0003097,7]
[384812037,1757568646484,-153.409563,0.0003097,7]
[384812039,1757568646494,-665.43,0.0003097,7]
[384812041,1757568646504,-481.25443655,0.0003097,7]
[384812043,1757568646515,-151.0,0.0003097,7]
[384812045,1757568646525,-151.0,0.0003097,7]
[384812047,1757568646534,-162.43746541,0.0003097,7]
[384812049,1757568646543,-158.840286,0.0003097,7]
[384812051,1757568646554,-153.604443,0.0003097,7]
[384812053,1757568646567,-215.981558,0.0003097,7]
[384812055,1757568646576,-151.0,0.0003097,7]
[384812057,1757568646589,-151.0,0.0003097,7]
[384812059,1757568646598,-400.0,0.0003097,7]
[384812060,1757568646607,-151.0,0.0003097,7]
[384812061,1757568646617,-616.85,0.0003097,7]
[384812062,1757568646627,-151.0,0.0003097,7]
[384812063,1757568646636,-400.0,0.0003097,7]
[384812064,1757568646645,-406.07015221,0.0003097,7]
[384812065,1757568646655,-401.48850207,0.0003097,7]
[384812066,1757568646665,-550.65,0.0003097,7]
[384812067,1757568646674,-817.35,0.0003097,7]
[384812068,1757568646688,-400.0,0.0003097,7]
[384812069,1757568646697,-400.0,0.0003097,7]
[384812070,1757568646706,-400.0,0.0003097,7]
[384812071,1757568646715,-419.62,0.0003097,7]
[384812072,1757568646724,-400.0,0.0003097,7]
[384812074,1757568646734,-400.0,0.0003097,7]
[384812076,1757568646744,-405.26818527,0.0003097,7]
[384812078,1757568646753,-2050.59,0.0003097,7]
[384812080,1757568646762,-405.47731867,0.0003097,7]
[384812082,1757568646772,-406.49175949,0.0003097,7]
[384812084,1757568646781,-401.71405785,0.0003097,7]
[384812086,1757568646791,-400.0,0.0003097,7]
[384812088,1757568646800,-151.0,0.0003097,7]
[384812090,1757568646809,-151.0,0.0003097,7]
[384812092,1757568646818,-403.12965854,0.0003097,7]
[384812094,1757568646827,-400.0,0.0003097,7]
[384812096,1757568646837,-526.28,0.0003097,7]
[384812098,1757568646846,-402.10503356,0.0003097,7]
[384812100,1757568646856,-405.73523244,0.0003097,7]
[384812102,1757568646866,-402.448518,0.0003097,7]
[384812104,1757568646875,-400.0,0.0003097,7]
[384812106,1757568646885,-500.0,0.0003097,7]
[384812108,1757568646894,-406.58903214,0.0003097,7]
[384812110,1757568646903,-614.91,0.0003097,7]
[384812112,1757568646913,-317.19016277,0.0003097,7]
[384812114,1757568646923,-551.79,0.0003097,7]
[384812116,1757568646933,-553.93425633,0.0003097,7]
[384812118,1757568646942,-400.0,0.0003097,7]
[384812119,1757568646952,-151.0,0.0003097,7]
[384812121,1757568646961,-151.0,0.0003097,7]
[384812123,1757568646970,-224.587046,0.0003097,7]
[384812126,1757568646980,-400.0,0.0003097,7]
[384812128,1757568646989,-400.0,0.0003097,7]
[384812130,1757568646999,-151.0,0.0003097,7]
[384812132,1757568647008,-151.0,0.0003097,7]
[384812133,1757568647017,-156.201803,0.0003097,7]
[384812136,1757568647027,-400.0,0.0003097,7]
[384812138,1757568647036,-239.72636411,0.0003097,7]
[384812139,1757568647046,-400.0,0.0003097,7]
[384812142,1757568647055,-499.82,0.0003097,7]
[384812143,1757568647064,-400.0,0.0003097,7]
[384812146,1757568647074,-151.0,0.0003097,7]
[384812147,1757568647083,-163.28475,0.0003097,7]
[384812149,1757568647092,-403.7072346,0.0003097,7]
[384812151,1757568647102,-400.0,0.0003097,7]
[384812154,1757568647111,-252.505337,0.0003097,7]
[384812156,1757568647121,-598.49,0.0003097,7]
[384812158,1757568647130,-400.0,0.0003097,7]
[384812160,1757568647139,-400.0,0.0003097,7]
[384812162,1757568647148,-406.42450438,0.0003097,7]
[384812164,1757568647158,-400.0,0.0003097,7]
[384812166,1757568647167,-400.0,0.0003097,7]
[384812168,1757568647176,-404.57299535,0.0003097,7]
[384812169,1757568647186,-400.0,0.0003097,7]
[384812171,1757568647195,-400.0,0.0003097,7]
[384812173,1757568647205,-915.6,0.0003097,7]
[384812175,1757568647215,-400.0,0.0003097,7]
[384812177,1757568647224,-1006.75466345,0.0003097,7]
[384812179,1757568647233,-400.0,0.0003097,7]
[384812181,1757568647242,-840.47,0.0003097,7]
[384812183,1757568647251,-402.15247742,0.0003097,7]
[384812185,1757568647260,-400.0,0.0003097,7]
[384812187,1757568647269,-400.0,0.0003097,7]
[384812189,1757568647279,-403.1930013,0.0003097,7]
[384812191,1757568647288,-400.0,0.0003097,7]
[384812194,1757568647297,-400.0,0.0003097,7]
[384812196,1757568647307,-400.0,0.0003097,7]
[384812198,1757568647316,-400.0,0.0003097,7]
[384812199,1757568647325,-400.0,0.0003097,7]
[384812201,1757568647335,-799.87,0.0003097,7]
[384812204,1757568647344,-400.0,0.0003097,7]
[384812206,1757568647353,-403.19274183,0.0003097,7]
[384812208,1757568647363,-400.0,0.0003097,7]
[384812210,1757568647372,-400.0,0.0003097,7]
[384812212,1757568647382,-400.0,0.0003097,7]
[384812214,1757568647392,-400.0,0.0003097,7]
[384812216,1757568647401,-400.0,0.0003097,7]
[384812218,1757568647411,-400.0,0.0003097,7]
[384812220,1757568647420,-400.0,0.0003097,7]
[384812222,1757568647429,-400.0,0.0003097,7]
[384812224,1757568647438,-400.0,0.0003097,7]
[384812226,1757568647447,-770.27,0.0003097,7]
[384812227,1757568647456,-400.0,0.0003097,7]
[384812230,1757568647466,-400.0,0.0003097,7]
[384812231,1757568647475,-400.0,0.0003097,7]
[384812234,1757568647485,-400.0,0.0003097,7]
[384812236,1757568647495,-400.0,0.0003097,7]
[384812238,1757568647504,-710.76,0.0003097,7]
[384812240,1757568647513,-402.5584789,0.0003097,7]
[384812242,1757568647522,-407.46,0.0003097,7]
[384812243,1757568647531,-402.92286615,0.0003097,7]
[384812246,1757568647541,-404.90324515,0.0003097,7]
[384812255,1757568647621,-504.96,0.0003097,7]
[384812257,1757568647630,-400.0,0.0003097,7]
[384812259,1757568647639,-400.0,0.0003097,7]
[384812261,1757568647649,-400.0,0.0003097,7]
[384812263,1757568647659,-400.0,0.0003097,7]
[384812265,1757568647669,-400.0,0.0003097,7]
[384812267,1757568647678,-400.0,0.0003097,7]
[384812269,1757568647687,-400.0,0.0003097,7]
[384812271,1757568647696,-400.0,0.0003097,7]
[384812273,1757568647705,-400.0,0.0003097,7]
[384812275,1757568647714,-400.0,0.0003097,7]
[384812277,1757568647723,-400.0,0.0003097,7]
[384812279,1757568647734,-495.40781026,0.0003097,7]
[384812281,1757568647744,-400.0,0.0003097,7]
[384812283,1757568647753,-404.27179077,0.0003097,7]
[384812284,1757568647762,-400.0,0.0003097,7]
[384812286,1757568647771,-400.0,0.0003097,7]
[384812289,1757568647780,-404.21901872,0.0003097,7]
[384812291,1757568647790,-400.0,0.0003097,7]
[384812292,1757568647799,-400.0,0.0003097,7]
[384812294,1757568647808,-500.65,0.0003097,7]
[384812296,1757568647817,-1444.19,0.0003097,7]
[384812298,1757568647827,-400.0,0.0003097,7]
[384812300,1757568647835,-403.25929946,0.0003097,7]
[384812302,1757568647845,-400.0,0.0003097,7]
[384812303,1757568647856,-400.0,0.0003097,7]
[384812304,1757568647866,-400.0,0.0003097,7]
[384812305,1757568647875,-400.0,0.0003097,7]
[384812306,1757568647884,-400.0,0.0003097,7]
[384812307,1757568647893,-400.0,0.0003097,7]
[384812308,1757568647902,-295.08003962,0.0003097,7]
[384812309,1757568647911,-490.47,0.0003097,7]
[384812310,1757568647921,-429.70963118,0.0003097,7]
[384812312,1757568647930,-401.78078121,0.0003097,7]
[384812314,1757568647940,-400.0,0.0003097,7]
[384812316,1757568647948,-924.5,0.0003097,7]
[384812318,1757568647957,-400.0,0.0003097,7]
[384812320,1757568647967,-978.97,0.0003097,7]
[384812322,1757568647977,-400.0,0.0003097,7]
[384812324,1757568647986,-805.6,0.0003097,7]
[384812326,1757568647996,-1372.29,0.0003097,7]
[384812328,1757568648006,-554.59,0.0003097,7]
[384812330,1757568648016,-402.44733086,0.0003097,7]
[384812332,1757568648025,-401.71923968,0.0003097,7]
[384812334,1757568648035,-702.87,0.0003097,7]
[384812336,1757568648044,-401.72459281,0.0003097,7]
[384812338,1757568648053,-400.0,0.0003097,7]
[384812340,1757568648063,-402.77294811,0.0003097,7]
[384812342,1757568648073,-400.0,0.0003097,7]
[384812344,1757568648082,-236.78384215,0.0003097,7]
[384812346,1757568648091,-400.0,0.0003097,7]
[384812348,1757568648100,-400.0,0.0003097,7]
[384812350,1757568648110,-1372.0,0.0003097,7]
[384812352,1757568648119,-695.29,0.0003097,7]
[384812354,1757568648128,-415.22049761,0.0003097,7]
[384812356,1757568648138,-400.0,0.0003097,7]
[384812358,1757568648148,-1205.22,0.0003097,7]
[384812360,1757568648157,-542.77,0.0003097,7]
[384812362,1757568648166,-711.21,0.0003097,7]
[384812364,1757568648175,-400.0,0.0003097,7]
[384812366,1757568648185,-404.75118,0.0003097,7]
[384812368,1757568648194,-401.74275396,0.0003097,7]
[384812370,1757568648203,-402.40932874,0.0003097,7]
[384812372,1757568648212,-656.67,0.0003097,7]
[384812374,1757568648222,-406.84837607,0.0003097,7]
[384812376,1757568648231,-742.81,0.0003097,7]
[384812378,1757568648240,-401.23891806,0.0003097,7]
[384812380,1757568648250,-1410.05,0.0003097,7]
[384812382,1757568648259,-716.74,0.0003097,7]
[384812384,1757568648268,-673.71,0.0003097,7]
[384812386,1757568648277,-400.0,0.0003097,7]
[384812388,1757568648286,-404.86039227,0.0003097,7]
[384812390,1757568648296,-403.13979311,0.0003097,7]
[384812392,1757568648305,-400.0,0.0003097,7]
[384812394,1757568648314,-408.36226058,0.0003097,7]
[384812396,1757568648323,-1670.22,0.0003097,7]
[384812398,1757568648332,-400.0,0.0003097,7]
[384812400,1757568648341,-481.63,0.0003097,7]
[384812402,1757568648350,-665.5,0.0003097,7]
[384812404,1757568648359,-983.86,0.0003097,7]
[384812406,1757568648368,-400.0,0.0003097,7]
[384812408,1757568648377,-465.71,0.0003097,7]
[384812410,1757568648386,-400.0,0.0003097,7]
[384812412,1757568648395,-400.0,0.0003097,7]
[384812414,1757568648404,-976.79,0.0003097,7]
[384812416,1757568648414,-591.25,0.0003097,7]
[384812418,1757568648423,-403.9911122,0.0003097,7]
[384812420,1757568648432,-771.99,0.0003097,7]
[384812422,1757568648441,-400.0,0.0003097,7]
[384812424,1757568648450,-835.07,0.0003097,7]
[384812426,1757568648459,-400.0,0.0003097,7]
[384812428,1757568648468,-400.0,0.0003097,7]
[384812430,1757568648477,-681.87,0.0003097,7]
[384812432,1757568648486,-927.09,0.0003097,7]
[384812434,1757568648496,-400.0,0.0003097,7]
[384812436,1757568648506,-482.89536115,0.0003097,7]
[384812438,1757568648515,-590.31,0.0003097,7]
[384812440,1757568648524,-400.0,0.0003097,7]
[384812442,1757568648533,-400.0,0.0003097,7]
[384812444,1757568648542,-1593.36,0.0003097,7]
[384812446,1757568648552,-400.0,0.0003097,7]
[384812448,1757568648561,-400.0,0.0003097,7]
[384812450,1757568648571,-400.0,0.0003097,7]
[384812452,1757568648584,-402.39859905,0.0003097,7]
[384812454,1757568648594,-1378.83,0.0003097,7]
[384812456,1757568648603,-400.0,0.0003097,7]
[384812458,1757568648616,-1531.72,0.0003097,7]
[384812460,1757568648626,-1194.87,0.0003097,7]
[384812462,1757568648636,-400.0,0.0003097,7]
[384812464,1757568648645,-1213.58,0.0003097,7]
[384812465,1757568648659,-794.12,0.0003097,7]
[384812467,1757568648669,-400.0,0.0003097,7]
[384812469,1757568648678,-573.3,0.0003097,7]
[384812471,1757568648687,-400.0,0.0003097,7]
[384812473,1757568648696,-19114.7962684,0.0003097,2]
[384812475,1757568648706,-831.25,0.0003097,7]
[384812477,1757568648715,-405.92908129,0.0003097,7]
[384812479,1757568648724,-8347.76077965,0.0003097,2]
[384812481,1757568648734,-426.14,0.0003097,7]
[384812483,1757568648743,-5179.5,0.0003097,7]
[384812485,1757568648753,-400.0,0.0003097,7]
[384812487,1757568648762,-608.78,0.0003097,7]
[384812489,1757568648771,-1289.03,0.0003097,7]
[384812491,1757568648780,-400.0,0.0003097,7]
[384812493,1757568648789,-1257.84,0.0003097,7]
[384812495,1757568648798,-405.72585483,0.0003097,7]
[384812497,1757568648807,-1221.98,0.0003097,7]
[384812499,1757568648816,-895.95,0.0003097,7]
[384812501,1757568648825,-400.0,0.0003097,7]
[384812503,1757568648834,-627.44,0.0003097,7]
[384812505,1757568648843,-400.0,0.0003097,7]
[384812507,1757568648853,-400.0,0.0003097,7]
[384812509,1757568648862,-400.0,0.0003097,7]
[384812511,1757568648871,-957.05,0.0003097,7]
[384812513,1757568648880,-400.0,0.0003097,7]
[384812515,1757568648889,-400.0,0.0003097,7]
[384812517,1757568648898,-400.0,0.0003097,7]
[384812519,1757568648909,-406.01657837,0.0003097,7]
[384812521,1757568648918,-403.10812593,0.0003097,7]
[384812523,1757568648927,-1322.68,0.0003097,7]
[384812525,1757568648936,-400.0,0.0003097,7]
[384812527,1757568648946,-400.0,0.0003097,7]
[384812528,1757568648955,-400.85288849,0.0003097,2]
[384812531,1757568648964,-705.29,0.0003097,7]
[384812533,1757568648973,-400.0,0.0003097,7]
[384812535,1757568648983,-939.24,0.0003097,7]
[384812537,1757568648993,-820.68,0.0003097,7]
[384812539,1757568649003,-400.0,0.0003097,7]
[384812541,1757568649012,-404.94454402,0.0003097,7]
[384812543,1757568649023,-462.48,0.0003097,7]
[384812545,1757568649032,-400.0,0.0003097,7]
[384812547,1757568649041,-400.0,0.0003097,7]
[384812549,1757568649050,-822.46,0.0003097,7]
[384812551,1757568649059,-4116.46,0.0003097,7]
[384812553,1757568649068,-400.0,0.0003097,7]
[384812555,1757568649078,-400.0,0.0003097,7]
[384812556,1757568649087,-400.0,0.0003097,7]
[384812558,1757568649096,-402.04499695,0.0003097,7]
[384812561,1757568649106,-400.0,0.0003097,7]
[384812562,1757568649115,-558.78,0.0003097,7]
[384812564,1757568649125,-854.91,0.0003097,7]
[384812566,1757568649134,-403.79889589,0.0003097,7]
[384812569,1757568649143,-1846.45,0.0003097,7]
[384812571,1757568649153,-510.37,0.0003097,7]
[384812573,1757568649163,-484.44515188,0.0003097,7]
[384812575,1757568649173,-3850.38,0.0003097,7]
[384812577,1757568649183,-400.0,0.0003097,7]
[384812579,1757568649192,-641.23,0.0003097,7]
[384812581,1757568649202,-400.0,0.0003097,7]
[384812582,1757568649211,-732.6,0.0003097,7]
[384812585,1757568649220,-3493.3,0.0003097,7]
[384812586,1757568649229,-400.0,0.0003097,7]
[384812588,1757568649239,-400.0,0.0003097,7]
[384812590,1757568649248,-400.0,0.0003097,7]
[384812592,1757568649257,-937.89,0.0003097,7]
[384812594,1757568649267,-500.0,0.0003097,2]
[384812596,1757568649277,-403.79794081,0.0003097,7]
[384812598,1757568649286,-303.47689547,0.0003097,7]
[384812600,1757568649295,-427.94,0.0003097,7]
[384812602,1757568649304,-3439.71,0.0003097,7]
[384812604,1757568649313,-400.0,0.0003097,7]
[384812606,1757568649323,-299.69649872,0.0003097,7]
[384812608,1757568649332,-498.05,0.0003097,7]
[384812610,1757568649341,-400.0,0.0003097,7]
[384812612,1757568649351,-4465.19,0.0003097,7]
[384812614,1757568649360,-400.0,0.0003097,7]
[384812616,1757568649370,-692.99,0.0003097,7]
[384812619,1757568649379,-449.18,0.0003097,7]
[384812620,1757568649388,-435.91671478,0.0003097,7]
[384812622,1757568649398,-400.0,0.0003097,7]
[384812624,1757568649407,-1651.29,0.0003097,7]
[384812626,1757568649417,-4833.5,0.0003097,7]
[384812628,1757568649427,-405.92632181,0.0003097,7]
[384812629,1757568649436,-2234.53,0.0003097,7]
[384812630,1757568649445,-400.0,0.0003097,7]
[384812631,1757568649455,-633.43,0.0003097,7]
[384812632,1757568649464,-665.96,0.0003097,7]
[384812633,1757568649474,-833.19,0.0003097,7]
[384812634,1757568649483,-400.0,0.0003097,7]
[384812635,1757568649492,-400.0,0.0003097,7]
[384812637,1757568649502,-400.0,0.0003097,7]
[384812639,1757568649511,-400.0,0.0003097,7]
[384812641,1757568649521,-400.0,0.0003097,7]
[384812643,1757568649530,-402.50318622,0.0003097,7]
[384812645,1757568649539,-629.36,0.0003097,7]
[384812647,1757568649548,-2206.25,0.0003097,7]
[384812649,1757568649557,-400.0,0.0003097,7]
[384812651,1757568649567,-400.0,0.0003097,7]
[384812653,1757568649579,-753.76,0.0003097,7]
[384812655,1757568649589,-400.0,0.0003097,7]
[384812657,1757568649598,-927.49,0.0003097,7]
[384812659,1757568649607,-400.0,0.0003097,5]
[384812661,1757568649616,-400.0,0.0003097,7]
[384812663,1757568649626,-478.66,0.0003097,7]
[384812665,1757568649635,-401.85918589,0.0003097,7]
[384812667,1757568649644,-400.0,0.0003097,7]
[384812669,1757568649654,-755.12,0.0003097,7]
[384812670,1757568649663,-400.0,0.0003097,7]
[384812672,1757568649672,-745.23,0.0003097,7]
[384812675,1757568649682,-704.45,0.0003097,7]
[384812676,1757568649691,-400.0,0.0003097,7]
[384812679,1757568649700,-400.0,0.0003097,7]
[384812680,1757568649709,-400.0,0.0003097,7]
[384812682,1757568649718,-400.0,0.0003097,7]
[384812684,1757568649727,-2268.1,0.0003097,7]
[384812686,1757568649736,-549.81,0.0003097,7]
[384812688,1757568649745,-1161.73,0.0003097,7]
[384812690,1757568649754,-424.79646518,0.0003097,7]
[384812692,1757568649764,-400.0,0.0003097,7]
[384812694,1757568649773,-546.31,0.0003097,7]
[384812696,1757568649782,-805.77,0.0003097,7]
[384812698,1757568649791,-965.78,0.0003097,7]
[384812700,1757568649800,-928.47,0.0003097,7]
[384812702,1757568649809,-400.0,0.0003097,7]
[384812704,1757568649818,-124021.01424782,0.0003097,2]
[384812706,1757568649827,-5565.1738531,0.00030971,2]
[384812708,1757568649836,-2782.58692655,0.00030972,2]
[384812710,1757568649845,-151.0,0.00030972,7]
[384812712,1757568649854,-157.250058,0.00030972,7]
[384812714,1757568649864,-154.18676,0.00030972,7]
[384812716,1757568649873,-151.0,0.00030972,7]
[384812718,1757568649882,-151.0,0.00030972,7]
[384812720,1757568649891,-151.0,0.00030972,7]
[384812722,1757568649900,-152.872371,0.00030972,7]
[384812724,1757568649910,-151.0,0.00030972,7]
[384812726,1757568649919,-159.665806,0.00030972,7]
[384812728,1757568649928,-162.061284,0.00030972,7]
[384812730,1757568649937,-153.158747,0.00030972,7]
[384812732,1757568649946,-201.632638,0.00030972,2]
[384812734,1757568649955,-151.0,0.00030972,7]
[384812735,1757568649964,-151.0,0.00030972,7]
[384812737,1757568649973,-159.095524,0.00030972,7]
[384812739,1757568649982,-151.0,0.00030972,7]
[384812741,1757568649992,-151.0,0.00030972,7]
[384812744,1757568650001,-151.0,0.00030972,7]
[384812745,1757568650010,-501.22257293,0.00030973,5]
[384812747,1757568650020,-502.62753282,0.00030973,5]
[384812750,1757568650029,-500.0,0.00030973,5]
[384812751,1757568650037,-500.0,0.00030973,2]
[384812753,1757568650046,-512.54665482,0.00030973,5]
[384812755,1757568650055,-503.71057858,0.00030973,5]
[384812757,1757568650065,-503.84042939,0.00030973,5]
[384812759,1757568650074,-520.93173515,0.00030973,5]
[384812761,1757568650083,-500.0,0.00030973,5]
[384812763,1757568650092,-500.0,0.00030973,5]
[384812765,1757568650101,-473.15438815,0.00030973,5]
[384812767,1757568650111,-504.20975913,0.00030973,5]
[384812769,1757568650120,-512.96763459,0.00030973,5]
[384812771,1757568650128,-151.0,0.00030979,7]
[384812773,1757568650138,-159.91952446,0.00030979,10]
[384812775,1757568650147,-154.155139,0.00030979,7]
[384812777,1757568650156,-151.0,0.00030979,7]
[384812779,1757568650165,-151.0,0.00030979,7]
[384812781,1757568650174,-151.0,0.00030979,7]
[384812784,1757568650184,-269.71039,0.00030979,7]
[384812785,1757568650193,-170.261903,0.00030979,7]
[384812787,1757568650202,-216.01877,0.00030979,7]
[384812789,1757568650211,-151.0,0.00030979,7]
[384812791,1757568650219,-151.0,0.00030979,7]
[384812793,1757568650228,-151.0,0.00030979,7]
[384812795,1757568650237,-151.0,0.00030979,7]
[384812797,1757568650247,-153.418982,0.00030979,7]
[384812799,1757568650256,-852.08823673,0.00030979,2]
[384812801,1757568650265,-151.0,0.0003098,7]
[384812803,1757568650274,-151.0,0.0003098,7]
[384812805,1757568650283,-151.0,0.0003098,7]
[384812807,1757568650292,-178.53503,0.0003098,7]
[384812809,1757568650300,-212.649798,0.0003098,7]
[384812811,1757568650309,-153.954853,0.0003098,7]
[384812813,1757568650318,-153.169571,0.0003098,7]
[384812815,1757568650327,-151.432875,0.0003098,7]
[384812817,1757568650336,-152.899637,0.0003098,7]
[384812819,1757568650346,-151.0,0.0003098,7]
[384812821,1757568650355,-400.0,0.0003098,7]
[384812823,1757568650364,-152.790296,0.0003098,7]
[384812825,1757568650373,-400.0,0.0003098,7]
[384812827,1757568650382,-153.295922,0.0003098,7]
[384812829,1757568650391,-152.795584,0.0003098,7]
[384812831,1757568650400,-151.0,0.0003098,7]
[384812833,1757568650408,-152.493742,0.0003098,7]
[384812835,1757568650417,-153.114933,0.0003098,7]
[384812837,1757568650426,-400.0,0.0003098,7]
[384812839,1757568650435,-400.0,0.0003098,7]
[384812841,1757568650444,-152.216256,0.0003098,7]
[384812843,1757568650453,-400.0,0.0003098,7]
[384812845,1757568650462,-402.5724169,0.0003098,7]
[384812847,1757568650470,-151.0,0.0003098,7]
[384812849,1757568650479,-151.0,0.0003098,7]
[384812851,1757568650488,-2587.01,0.0003098,7]
[384812853,1757568650497,-3137.29,0.0003098,7]
[384812855,1757568650506,-832.0,0.0003098,7]
[384812857,1757568650515,-706.08,0.0003098,7]
[384812859,1757568650524,-500.0,0.0003098,2]
[384812861,1757568650533,-500.0,0.00030981,2]
[384812863,1757568650541,-12148.335192,0.00030982,2]
[384812865,1757568650550,-4039.9874091,0.00030982,2]
[384812867,1757568650559,-208.040268,0.00030982,7]
[384812869,1757568650568,-57556.93656213,0.00030982,2]
[384812914,1757568651053,163.42,0.00016438,2]
[384812930,1757568651197,-165.17101584,0.00030799,2]
[384812932,1757568651208,-500.0,0.00030799,2]
[384812934,1757568651218,-500.0,0.00030799,2]
[384812936,1757568651227,-239.76049842,0.00030799,2]
[384812938,1757568651236,-421.353876,0.000308,7]